[Event "Chess Festival Groningen 2023 | A"]
[Site "Groningen, Netherlands"]
[Date "2023.12.29"]
[Round "8.7"]
[White "De Boer, Eelke"]
[Black "Kovchan, Alexander"]
[Result "1-0"]
[TimeControl "90min/40moves + 30min + 30sec/move"]
[WhiteElo "2346"]
[BlackElo "2491"]

1. e4 {[%clk 01:30:57]} {[%emt 00:00:02]} c6 {[%clk 01:30:51]} {[%emt
00:00:10]} 2. d4 {[%clk 01:31:18]} {[%emt 00:00:09]} d5 {[%clk 01:31:14]}
{[%emt 00:00:06]} 3. e5 {[%clk 01:31:39]} {[%emt 00:00:09]} c5 {[%clk
01:31:37]} {[%emt 00:00:06]} 4. c3 {[%clk 01:30:06]} {[%emt 00:02:04]} Nc6
{[%clk 01:31:39]} {[%emt 00:00:28]} 5. Be2 {[%clk 01:30:28]} {[%emt 00:00:06]}
Bf5 {[%clk 01:23:20]} {[%emt 00:08:50]} 6. Nf3 {[%clk 01:29:18]} {[%emt
00:01:40]} e6 {[%clk 01:23:29]} {[%emt 00:00:21]} 7. O-O {[%clk 01:29:32]}
{[%emt 00:00:15]} cxd4 {[%clk 01:22:28]} {[%emt 00:01:32]} 8. Nxd4 {[%clk
01:28:26]} {[%emt 00:01:36]} Nge7 {[%clk 01:22:33]} {[%emt 00:00:25]} 9. Bb5
{[%clk 01:27:55]} {[%emt 00:01:01]} Bxb1 {[%clk 01:16:51]} {[%emt 00:06:12]} 10.
Rxb1 {[%clk 01:25:08]} {[%emt 00:03:17]} a6 {[%clk 01:17:13]} {[%emt 00:00:08]}
11. Bxc6+ {[%clk 01:17:07]} {[%emt 00:08:31]} Nxc6 {[%clk 01:17:33]} {[%emt
00:00:10]} 12. Nxc6 {[%clk 01:16:55]} {[%emt 00:00:42]} bxc6 {[%clk 01:18:00]}
{[%emt 00:00:03]} 13. Qg4 {[%clk 01:17:13]} {[%emt 00:00:11]} h5 {[%clk
01:13:15]} {[%emt 00:05:15]} 14. Qe2 {[%clk 01:09:50]} {[%emt 00:07:54]} Be7
{[%clk 01:10:16]} {[%emt 00:03:30]} 15. b4 {[%clk 01:06:08]} {[%emt 00:04:12]}
Qd7 {[%clk 00:58:56]} {[%emt 00:11:50]} 16. Be3 {[%clk 01:03:09]} {[%emt
00:03:29]} Qc7 {[%clk 00:54:33]} {[%emt 00:04:54]} 17. Bd4 {[%clk 00:53:17]}
{[%emt 00:10:22]} c5 {[%clk 00:53:19]} {[%emt 00:01:43]} 18. bxc5 {[%clk
00:53:34]} {[%emt 00:00:13]} Bxc5 {[%clk 00:53:40]} {[%emt 00:00:09]} 19. Rfd1
{[%clk 00:50:33]} {[%emt 00:03:31]} Bxd4 {[%clk 00:42:56]} {[%emt 00:11:15]} 20.
cxd4 {[%clk 00:50:28]} {[%emt 00:00:35]} Qa7 {[%clk 00:38:36]} {[%emt
00:04:50]} 21. Rbc1 {[%clk 00:43:54]} {[%emt 00:07:03]} g6 {[%clk 00:38:00]}
{[%emt 00:01:06]} 22. Rc3 {[%clk 00:38:15]} {[%emt 00:06:10]} O-O {[%clk
00:33:47]} {[%emt 00:04:42]} 23. Rg3 {[%clk 00:27:25]} {[%emt 00:11:20]} Kh7
{[%clk 00:33:39]} {[%emt 00:00:38]} 24. Rg5 {[%clk 00:22:05]} {[%emt 00:05:51]}
Rfc8 {[%clk 00:30:41]} {[%emt 00:03:28]} 25. Qd3 {[%clk 00:19:47]} {[%emt
00:02:48]} Kg7 {[%clk 00:27:55]} {[%emt 00:03:15]} 26. h4 {[%clk 00:17:06]}
{[%emt 00:03:12]} Rc4 {[%clk 00:27:22]} {[%emt 00:01:03]} 27. g4 {[%clk
00:16:43]} {[%emt 00:00:53]} hxg4 {[%clk 00:15:55]} {[%emt 00:11:57]} 28. h5
{[%clk 00:17:01]} {[%emt 00:00:12]} Rac8 {[%clk 00:13:42]} {[%emt 00:02:43]} 29.
hxg6 {[%clk 00:15:33]} {[%emt 00:01:58]} Qe7 {[%clk 00:14:04]} {[%emt
00:00:08]} 30. Rxg4 {[%clk 00:15:55]} {[%emt 00:00:09]} f5 {[%clk 00:14:26]}
{[%emt 00:00:08]} 31. exf6+ {[%clk 00:13:53]} {[%emt 00:02:32]} Qxf6 {[%clk
00:14:54]} {[%emt 00:00:06]} 32. Qg3 {[%clk 00:12:25]} {[%emt 00:01:52]} Rf8
{[%clk 00:07:55]} {[%emt 00:07:30]} 33. Rb1 {[%clk 00:07:22]} {[%emt 00:05:33]}
Kg8 {[%clk 00:03:32]} {[%emt 00:04:53]} 34. g7 {[%clk 00:05:58]} {[%emt
00:01:54]} Rfc8 {[%clk 00:03:48]} {[%emt 00:00:14]} 35. Qh2 {[%clk 00:05:53]}
{[%emt 00:00:34]} Rc1+ {[%clk 00:01:24]} {[%emt 00:02:54]} 36. Rxc1 {[%clk
00:06:17]} {[%emt 00:00:06]} Rxc1+ {[%clk 00:01:51]} 37. Kg2 {[%clk 00:06:40]}
{[%emt 00:00:10]} 1-0

[Event "Chess Festival Groningen 2023 | A"]
[Site "Groningen, Netherlands"]
[Date "2023.12.29"]
[Round "8.8"]
[White "Nevednichy, Vladislav"]
[Black "De Winter, Arthur"]
[Result "1/2-1/2"]
[TimeControl "90min/40moves + 30min + 30sec/move"]
[WhiteElo "2452"]
[BlackElo "2405"]

1. e4 {[%clk 01:30:57]} {[%emt 00:00:03]} c5 {[%clk 01:30:57]} {[%emt
00:00:04]} 2. Nf3 {[%clk 01:31:23]} {[%emt 00:00:03]} d6 {[%clk 01:31:23]}
{[%emt 00:00:04]} 3. Bb5+ {[%clk 01:31:46]} {[%emt 00:00:07]} Nd7 {[%clk
01:31:46]} {[%emt 00:00:07]} 4. a4 {[%clk 01:30:46]} {[%emt 00:01:31]} Ngf6
{[%clk 01:31:16]} {[%emt 00:01:00]} 5. Nc3 {[%clk 01:31:12]} {[%emt 00:00:04]}
g6 {[%clk 01:30:10]} {[%emt 00:01:35]} 6. O-O {[%clk 01:31:34]} {[%emt
00:00:09]} Bg7 {[%clk 01:29:53]} {[%emt 00:00:47]} 7. d4 {[%clk 01:31:04]}
{[%emt 00:01:00]} cxd4 {[%clk 01:28:23]} {[%emt 00:02:00]} 8. Nxd4 {[%clk
01:31:26]} {[%emt 00:00:08]} a6 {[%clk 01:27:30]} {[%emt 00:01:23]} 9. Be2
{[%clk 01:31:40]} {[%emt 00:00:16]} O-O {[%clk 01:27:45]} {[%emt 00:00:16]} 10.
Be3 {[%clk 01:31:27]} {[%emt 00:00:42]} Ne5 {[%clk 01:11:17]} {[%emt 00:16:58]}
11. h3 {[%clk 01:26:44]} {[%emt 00:05:13]} Bd7 {[%clk 01:10:25]} {[%emt
00:01:22]} 12. f4 {[%clk 01:20:02]} {[%emt 00:07:12]} Nc6 {[%clk 01:10:39]}
{[%emt 00:00:16]} 13. Nb3 {[%clk 01:18:36]} {[%emt 00:01:56]} Rc8 {[%clk
01:07:33]} {[%emt 00:03:36]} 14. a5 {[%clk 01:16:53]} {[%emt 00:02:14]} Be6
{[%clk 01:05:06]} {[%emt 00:02:56]} 15. Bb6 {[%clk 01:16:25]} {[%emt 00:00:59]}
Qe8 {[%clk 01:05:09]} {[%emt 00:00:27]} 16. Nd2 {[%clk 01:06:57]} {[%emt
00:09:58]} d5 {[%clk 00:53:10]} {[%emt 00:12:28]} 17. f5 {[%clk 01:01:27]}
{[%emt 00:06:01]} gxf5 {[%clk 00:52:10]} {[%emt 00:01:30]} 18. exf5 {[%clk
01:01:36]} {[%emt 00:00:21]} Bd7 {[%clk 00:52:33]} {[%emt 00:00:06]} 19. Nb3
{[%clk 01:00:37]} {[%emt 00:01:29]} Kh8 {[%clk 00:48:52]} {[%emt 00:04:11]} 20.
Nxd5 {[%clk 00:42:47]} {[%emt 00:18:21]} Nxd5 {[%clk 00:46:29]} {[%emt
00:02:53]} 21. Qxd5 {[%clk 00:43:13]} {[%emt 00:00:04]} e6 {[%clk 00:43:50]}
{[%emt 00:03:09]} 22. fxe6 {[%clk 00:38:23]} {[%emt 00:05:20]} Bxe6 {[%clk
00:44:12]} {[%emt 00:00:08]} 23. Qh5 {[%clk 00:38:39]} {[%emt 00:00:14]} f5
{[%clk 00:39:26]} {[%emt 00:05:17]} 24. Qxe8 {[%clk 00:36:55]} {[%emt
00:02:14]} Rfxe8 {[%clk 00:39:13]} {[%emt 00:00:42]} 25. Bh5 {[%clk 00:36:29]}
{[%emt 00:00:56]} Rg8 {[%clk 00:34:43]} {[%emt 00:05:01]} 26. Rae1 {[%clk
00:31:28]} {[%emt 00:05:31]} Bc4 {[%clk 00:35:05]} {[%emt 00:00:08]} 27. Rxf5
{[%clk 00:27:39]} Bxb2 {[%clk 00:35:23]} {[%emt 00:04:30]} 28. Bg4 {[%clk
00:21:22]} {[%emt 00:06:48]} Rce8 {[%clk 00:34:55]} {[%emt 00:00:57]} 29. Rb1
{[%clk 00:17:44]} {[%emt 00:04:08]} Bc3 {[%clk 00:32:47]} {[%emt 00:02:38]} 30.
Rf4 {[%clk 00:12:16]} {[%emt 00:05:58]} Ne5 {[%clk 00:30:40]} {[%emt 00:02:37]}
31. Bh5 {[%clk 00:04:25]} {[%emt 00:08:21]} Re7 {[%clk 00:30:54]} {[%emt
00:00:15]} 32. Bd4 {[%clk 00:04:27]} {[%emt 00:00:28]} Bxd4+ {[%clk 00:30:59]}
{[%emt 00:00:25]} 33. Nxd4 {[%clk 00:04:50]} {[%emt 00:00:07]} Bd5 {[%clk
00:30:46]} {[%emt 00:00:43]} 34. Rf2 {[%clk 00:04:30]} {[%emt 00:00:50]} Nc4
{[%clk 00:17:37]} {[%emt 00:13:39]} 35. Ra1 {[%clk 00:04:57]} {[%emt 00:00:03]}
Re5 {[%clk 00:16:26]} {[%emt 00:01:41]} 36. Be2 {[%clk 00:04:29]} {[%emt
00:00:58]} Ne3 {[%clk 00:16:02]} {[%emt 00:00:54]} 37. Bf3 {[%clk 00:04:00]}
{[%emt 00:00:58]} Bxf3 {[%clk 00:15:17]} {[%emt 00:01:15]} 38. Nxf3 {[%clk
00:04:27]} {[%emt 00:00:03]} Rc5 {[%clk 00:15:27]} {[%emt 00:00:19]} 39. Rb1
{[%clk 00:01:01]} {[%emt 00:03:56]} Rxa5 {[%clk 00:13:26]} {[%emt 00:02:31]} 40.
Re2 {[%clk 00:01:23]} {[%emt 00:00:07]} Ra3 {[%clk 00:13:13]} {[%emt 00:00:44]}
41. Nd4 {[%clk 00:00:35]} {[%emt 00:01:17]} Nd5 {[%clk 00:11:53]} {[%emt
00:01:50]} 42. Rxb7 {[%clk 00:24:59]} {[%emt 00:06:07]} Nf4 {[%clk 00:41:17]}
{[%emt 00:01:05]} 43. Rd2 {[%clk 00:25:25]} {[%emt 00:00:04]} Rag3 {[%clk
00:38:11]} {[%emt 00:03:35]} 44. Nf5 {[%clk 00:22:07]} {[%emt 00:03:49]} Rxg2+
{[%clk 00:37:02]} {[%emt 00:01:40]} 45. Rxg2 {[%clk 00:22:33]} {[%emt
00:00:04]} Rxg2+ {[%clk 00:37:27]} {[%emt 00:00:05]} 46. Kf1 {[%clk 00:20:33]}
{[%emt 00:02:29]} Rg8 {[%clk 00:37:00]} {[%emt 00:00:57]} 47. c4 {[%clk
00:17:24]} {[%emt 00:03:40]} Rf8 {[%clk 00:35:25]} {[%emt 00:02:04]} 48. Nd6
{[%clk 00:17:51]} {[%emt 00:00:04]} Kg8 {[%clk 00:29:26]} {[%emt 00:06:28]} 49.
Ra7 {[%clk 00:15:21]} {[%emt 00:03:01]} Nxh3+ {[%clk 00:27:11]} {[%emt
00:02:45]} 50. Ke2 {[%clk 00:12:32]} {[%emt 00:03:19]} h5 {[%clk 00:23:40]}
{[%emt 00:04:01]} 51. Rxa6 {[%clk 00:12:37]} {[%emt 00:00:24]} h4 {[%clk
00:22:11]} {[%emt 00:02:00]} 52. Ke3 {[%clk 00:10:12]} {[%emt 00:02:55]} Nf2
{[%clk 00:17:50]} {[%emt 00:04:51]} 53. Ne4 {[%clk 00:09:22]} {[%emt 00:01:19]}
Re8 {[%clk 00:17:35]} {[%emt 00:00:46]} 54. Kxf2 {[%clk 00:09:23]} {[%emt
00:00:30]} Rxe4 {[%clk 00:18:02]} {[%emt 00:00:03]} 1/2-1/2

[Event "Chess Festival Groningen 2023 | A"]
[Site "Groningen, Netherlands"]
[Date "2023.12.29"]
[Round "8.9"]
[White "Palchuk, Andrii"]
[Black "Bulmaga, Irina"]
[Result "1/2-1/2"]
[TimeControl "90min/40moves + 30min + 30sec/move"]
[WhiteElo "2328"]
[BlackElo "2439"]

1. d4 {[%clk 01:30:58]} {[%emt 00:00:01]} Nf6 {[%clk 01:30:51]} {[%emt
00:00:09]} 2. Nf3 {[%clk 01:31:17]} {[%emt 00:00:12]} e6 {[%clk 01:31:12]}
{[%emt 00:00:09]} 3. c4 {[%clk 01:31:39]} {[%emt 00:00:08]} Bb4+ {[%clk
01:31:35]} {[%emt 00:00:07]} 4. Bd2 {[%clk 01:32:02]} {[%emt 00:00:08]} Qe7
{[%clk 01:31:47]} {[%emt 00:00:17]} 5. g3 {[%clk 01:31:43]} {[%emt 00:00:50]}
Bxd2+ {[%clk 01:31:57]} {[%emt 00:00:20]} 6. Qxd2 {[%clk 01:31:06]} {[%emt
00:01:07]} Nc6 {[%clk 01:31:22]} {[%emt 00:01:04]} 7. Nc3 {[%clk 01:28:48]}
{[%emt 00:02:48]} d5 {[%clk 01:31:33]} {[%emt 00:00:20]} 8. cxd5 {[%clk
01:21:50]} {[%emt 00:07:28]} exd5 {[%clk 01:31:36]} {[%emt 00:00:26]} 9. Bg2
{[%clk 01:22:12]} {[%emt 00:00:09]} O-O {[%clk 01:31:46]} {[%emt 00:00:20]} 10.
O-O {[%clk 01:22:33]} {[%emt 00:00:09]} Re8 {[%clk 01:31:59]} {[%emt 00:00:18]}
11. Rfe1 {[%clk 01:14:29]} {[%emt 00:08:34]} h6 {[%clk 01:09:09]} {[%emt
00:23:19]} 12. b3 {[%clk 00:56:49]} {[%emt 00:18:10]} Ne4 {[%clk 00:57:59]}
{[%emt 00:11:40]} 13. Qb2 {[%clk 00:56:29]} {[%emt 00:00:50]} Nxc3 {[%clk
00:57:05]} {[%emt 00:01:25]} 14. Qxc3 {[%clk 00:56:55]} {[%emt 00:00:04]} Be6
{[%clk 00:55:16]} {[%emt 00:02:18]} 15. Rec1 {[%clk 00:43:11]} {[%emt
00:14:14]} Bf5 {[%clk 00:47:05]} {[%emt 00:08:41]} 16. e3 {[%clk 00:42:23]}
{[%emt 00:01:19]} Rac8 {[%clk 00:46:58]} {[%emt 00:00:37]} 17. Qc5 {[%clk
00:39:20]} {[%emt 00:03:33]} Be4 {[%clk 00:40:42]} {[%emt 00:06:46]} 18. Qxe7
{[%clk 00:36:27]} {[%emt 00:03:23]} Nxe7 {[%clk 00:39:57]} {[%emt 00:01:15]} 19.
Ne1 {[%clk 00:33:25]} {[%emt 00:03:32]} Bxg2 {[%clk 00:39:27]} {[%emt
00:01:00]} 20. Kxg2 {[%clk 00:33:16]} {[%emt 00:00:39]} Nf5 {[%clk 00:39:22]}
{[%emt 00:00:35]} 21. Nd3 {[%clk 00:33:21]} {[%emt 00:00:25]} c6 {[%clk
00:39:27]} {[%emt 00:00:26]} 22. b4 {[%clk 00:30:22]} {[%emt 00:03:29]} Nd6
{[%clk 00:39:09]} {[%emt 00:00:47]} 23. a4 {[%clk 00:30:01]} {[%emt 00:00:52]}
a6 {[%clk 00:38:08]} {[%emt 00:01:31]} 24. a5 {[%clk 00:28:42]} {[%emt
00:01:49]} Nc4 {[%clk 00:38:28]} {[%emt 00:00:10]} 25. Nc5 {[%clk 00:27:06]}
{[%emt 00:02:06]} Nd6 {[%clk 00:38:48]} {[%emt 00:00:11]} 26. Nd3 {[%clk
00:27:29]} {[%emt 00:00:07]} Nc4 {[%clk 00:38:58]} {[%emt 00:00:20]} 27. Nc5
{[%clk 00:27:54]} {[%emt 00:00:05]} Nd6 {[%clk 00:39:17]} {[%emt 00:00:11]} 28.
Nd3 {[%clk 00:28:20]} {[%emt 00:00:04]} 1/2-1/2

[Event "Chess Festival Groningen 2023 | A"]
[Site "Groningen, Netherlands"]
[Date "2023.12.29"]
[Round "8.11"]
[White "Jacobs, Florian"]
[Black "Stremavicius, Pijus"]
[Result "0-1"]
[TimeControl "90min/40moves + 30min + 30sec/move"]
[WhiteElo "2218"]
[BlackElo "2367"]

1. d4 {[%clk 01:30:57]} {[%emt 00:00:02]} e6 {[%clk 01:30:47]} {[%emt
00:00:13]} 2. c4 {[%clk 01:31:19]} {[%emt 00:00:08]} b6 {[%clk 01:31:04]}
{[%emt 00:00:13]} 3. a3 {[%clk 01:27:07]} {[%emt 00:04:42]} Bb7 {[%clk
01:30:36]} {[%emt 00:00:58]} 4. Nc3 {[%clk 01:27:29]} {[%emt 00:00:07]} f5
{[%clk 01:30:52]} {[%emt 00:00:14]} 5. Nf3 {[%clk 01:27:01]} {[%emt 00:00:58]}
Nf6 {[%clk 01:31:01]} {[%emt 00:00:20]} 6. g3 {[%clk 01:26:49]} {[%emt
00:00:43]} Ne4 {[%clk 01:30:56]} {[%emt 00:00:35]} 7. Qd3 {[%clk 01:09:34]}
{[%emt 00:17:45]} Be7 {[%clk 01:29:13]} {[%emt 00:02:13]} 8. Bg2 {[%clk
01:06:08]} {[%emt 00:03:56]} O-O {[%clk 01:29:35]} {[%emt 00:00:07]} 9. O-O
{[%clk 01:06:01]} {[%emt 00:00:37]} Bf6 {[%clk 01:29:37]} {[%emt 00:00:29]} 10.
Bd2 {[%clk 00:58:50]} {[%emt 00:07:41]} d5 {[%clk 01:26:01]} {[%emt 00:04:06]}
11. cxd5 {[%clk 00:57:49]} {[%emt 00:01:31]} exd5 {[%clk 01:26:21]} {[%emt
00:00:10]} 12. Bf4 {[%clk 00:46:50]} {[%emt 00:11:29]} c6 {[%clk 01:24:28]}
{[%emt 00:02:23]} 13. Rac1 {[%clk 00:44:37]} {[%emt 00:02:42]} Nd7 {[%clk
01:23:54]} {[%emt 00:01:03]} 14. h4 {[%clk 00:36:46]} {[%emt 00:08:23]} Rc8
{[%clk 01:19:03]} {[%emt 00:05:21]} 15. Rfd1 {[%clk 00:28:32]} {[%emt
00:08:44]} Qe7 {[%clk 01:18:14]} {[%emt 00:01:20]} 16. b4 {[%clk 00:23:13]}
{[%emt 00:05:49]} Rfe8 {[%clk 01:18:35]} {[%emt 00:00:09]} 17. Bf1 {[%clk
00:22:23]} {[%emt 00:01:20]} h6 {[%clk 01:18:42]} {[%emt 00:00:22]} 18. b5
{[%clk 00:16:45]} {[%emt 00:06:09]} c5 {[%clk 01:16:36]} {[%emt 00:02:35]} 19.
h5 {[%clk 00:08:32]} {[%emt 00:08:43]} Qf7 {[%clk 01:14:07]} {[%emt 00:02:59]}
20. Ne5 {[%clk 00:06:03]} {[%emt 00:02:59]} Bxe5 {[%clk 01:13:59]} {[%emt
00:00:39]} 21. dxe5 {[%clk 00:06:20]} {[%emt 00:00:12]} d4 {[%clk 01:12:41]}
{[%emt 00:01:48]} 22. Bg2 {[%clk 00:05:34]} {[%emt 00:01:15]} Nxe5 {[%clk
01:13:00]} {[%emt 00:00:12]} 23. Bxe5 {[%clk 00:05:57]} {[%emt 00:00:07]} Rxe5
{[%clk 01:13:17]} {[%emt 00:00:13]} 24. Nb1 {[%clk 00:04:40]} {[%emt 00:01:47]}
Rce8 {[%clk 01:11:42]} {[%emt 00:02:04]} 25. Bf3 {[%clk 00:04:38]} {[%emt
00:00:33]} Nf6 {[%clk 01:11:51]} {[%emt 00:00:21]} 26. Nd2 {[%clk 00:04:28]}
{[%emt 00:00:38]} Bxf3 {[%clk 01:10:37]} {[%emt 00:01:45]} 27. exf3 {[%clk
00:04:45]} {[%emt 00:00:13]} Qxh5 {[%clk 01:11:00]} {[%emt 00:00:08]} 28. Kg2
{[%clk 00:04:54]} {[%emt 00:00:20]} Nd5 {[%clk 01:11:07]} {[%emt 00:00:24]} 29.
Nc4 {[%clk 00:02:47]} {[%emt 00:02:37]} Re2 {[%clk 01:10:13]} {[%emt 00:01:24]}
30. Rd2 {[%clk 00:03:09]} {[%emt 00:00:08]} Re1 {[%clk 01:09:33]} {[%emt
00:01:10]} 31. Rxe1 {[%clk 00:02:30]} {[%emt 00:01:09]} Rxe1 {[%clk 01:10:01]}
{[%emt 00:00:02]} 0-1

[Event "Chess Festival Groningen 2023 | A"]
[Site "Groningen, Netherlands"]
[Date "2023.12.29"]
[Round "8.12"]
[White "Lambrechts, Koen"]
[Black "Slagboom, Leandro"]
[Result "1/2-1/2"]
[TimeControl "90min/40moves + 30min + 30sec/move"]
[WhiteElo "2290"]
[BlackElo "2304"]

1. e4 {[%clk 01:30:45]} {[%emt 00:00:15]} e5 {[%clk 01:30:54]} {[%emt
00:00:06]} 2. d4 {[%clk 01:31:08]} {[%emt 00:00:07]} exd4 {[%clk 01:31:19]}
{[%emt 00:00:06]} 3. Qxd4 {[%clk 01:31:32]} {[%emt 00:00:05]} Nc6 {[%clk
01:31:09]} {[%emt 00:00:39]} 4. Qe3 {[%clk 01:31:27]} {[%emt 00:00:34]} Nf6
{[%clk 01:31:32]} {[%emt 00:00:08]} 5. Bd2 {[%clk 01:31:46]} {[%emt 00:00:11]}
Bb4 {[%clk 01:30:32]} {[%emt 00:01:30]} 6. Bb5 {[%clk 01:08:03]} {[%emt
00:24:13]} O-O {[%clk 01:25:14]} {[%emt 00:05:49]} 7. Ne2 {[%clk 01:07:39]}
{[%emt 00:00:53]} Re8 {[%clk 01:17:34]} {[%emt 00:08:10]} 8. Bxc6 {[%clk
01:03:54]} {[%emt 00:04:15]} Bxd2+ {[%clk 01:17:29]} {[%emt 00:00:35]} 9. Nxd2
{[%clk 01:04:18]} {[%emt 00:00:06]} bxc6 {[%clk 01:14:09]} {[%emt 00:03:49]} 10.
O-O {[%clk 01:04:16]} {[%emt 00:00:32]} d5 {[%clk 01:06:58]} {[%emt 00:07:41]}
11. f3 {[%clk 00:53:24]} {[%emt 00:11:23]} Qe7 {[%clk 00:53:57]} {[%emt
00:13:31]} 12. Ng3 {[%clk 00:46:28]} {[%emt 00:07:26]} Qb4 {[%clk 00:42:51]}
{[%emt 00:11:36]} 13. Nb3 {[%clk 00:41:53]} {[%emt 00:05:05]} Qb6 {[%clk
00:41:44]} {[%emt 00:01:36]} 14. Rfe1 {[%clk 00:41:10]} {[%emt 00:01:13]} dxe4
{[%clk 00:39:33]} {[%emt 00:02:42]} 15. Nxe4 {[%clk 00:35:39]} {[%emt
00:06:00]} Nxe4 {[%clk 00:39:34]} {[%emt 00:00:30]} 16. fxe4 {[%clk 00:35:23]}
{[%emt 00:00:46]} Be6 {[%clk 00:35:45]} {[%emt 00:04:18]} 17. Rad1 {[%clk
00:33:43]} {[%emt 00:02:10]} Rad8 {[%clk 00:28:10]} {[%emt 00:08:06]} 18. Kf2
{[%clk 00:33:16]} {[%emt 00:00:56]} h6 {[%clk 00:20:33]} {[%emt 00:08:08]} 19.
h3 {[%clk 00:27:33]} {[%emt 00:06:12]} 1/2-1/2